[Event "Titled Tuesday Blitz July 4 Late 2023"]
[White "ArchibaldCerveza29"]
[Black "Zherebtsova, Alexandra"]
[BlackFideId "24129518"]
[WhiteElo "2518"]
[BlackElo "2343"]
[Result "1-0"]
[Round "2"]
[TimeControl "180+2"]
[Date "2023.07.04"]
[WhiteClock "0:01:43"]
[BlackClock "0:00:19"]
[Board "136"]

1. e4 {[%clk 0:02:56]}  e5 {[%clk 0:02:50]} 2. Nf3 {[%clk 0:02:50]}  Nc6 {[%clk 0:02:50]} 3. Bc4 {[%clk 0:02:49]}  Nf6 {[%clk 0:02:50]} 4. O-O {[%clk 0:02:48]}  Nxe4 {[%clk 0:02:42]} 5. Nc3 {[%clk 0:02:45]}  Nxc3 {[%clk 0:02:34]} 6. dxc3 {[%clk 0:02:45]}  Be7 {[%clk 0:02:28]} 7. Qd5 {[%clk 0:02:45]}  O-O {[%clk 0:02:25]} 8. Nxe5 {[%clk 0:02:45]}  Nxe5 {[%clk 0:02:26]} 9. Qxe5 {[%clk 0:02:46]}  c6 {[%clk 0:02:19]} 10. Re1 {[%clk 0:02:30]}  Bf6 {[%clk 0:02:18]} 11. Qg3 {[%clk 0:02:31]}  d5 {[%clk 0:02:15]} 12. Bd3 {[%clk 0:02:31]}  Qb6 {[%clk 0:02:01]} 13. Rb1 {[%clk 0:02:17]}  Be6 {[%clk 0:01:49]} 14. Bf4 {[%clk 0:02:15]}  c5 {[%clk 0:01:35]} 15. h4 {[%clk 0:02:11]}  d4 {[%clk 0:01:20]} 16. c4 {[%clk 0:02:04]}  Kh8 {[%clk 0:00:48]} 17. h5 {[%clk 0:02:03]}  h6 {[%clk 0:00:47]} 18. Qf3 {[%clk 0:01:47]}  Bd7 {[%clk 0:00:31]} 19. Qe4 {[%clk 0:01:44]}  g6 {[%clk 0:00:23]} 20. hxg6 {[%clk 0:01:44]}  fxg6 {[%clk 0:00:19]} 21. Qxg6 {[%clk 0:01:43]} 1-0


[Site "https://www.chess.com"]

[Event "Titled Tuesday Blitz July 4 Late 2023"]
[White "Alahakoon, Isuru"]
[Black "Tan, Ralph"]
[WhiteFideId "9900993"]
[BlackFideId "30966590"]
[WhiteElo "2340"]
[BlackElo "2516"]
[Result "1-0"]
[Round "2"]
[TimeControl "180+2"]
[Date "2023.07.04"]
[WhiteClock "0:00:05"]
[BlackClock "0:00:00"]
[Board "137"]

1. Nf3 {[%clk 0:03:00]}  Nf6 {[%clk 0:02:59]} 2. d4 {[%clk 0:03:00]}  e6 {[%clk 0:03:00]} 3. Nc3 {[%clk 0:03:00]}  d5 {[%clk 0:02:59]} 4. Bg5 {[%clk 0:03:00]}  Be7 {[%clk 0:02:59]} 5. Bxf6 {[%clk 0:03:00]}  Bxf6 {[%clk 0:03:00]} 6. e4 {[%clk 0:03:00]}  dxe4 {[%clk 0:03:01]} 7. Nxe4 {[%clk 0:03:01]}  O-O {[%clk 0:03:01]} 8. Bd3 {[%clk 0:03:01]}  Nd7 {[%clk 0:03:00]} 9. Qe2 {[%clk 0:03:01]}  g6 {[%clk 0:02:46]} 10. O-O-O {[%clk 0:03:00]}  c5 {[%clk 0:02:35]} 11. dxc5 {[%clk 0:02:48]}  Qa5 {[%clk 0:02:26]} 12. Nxf6+ {[%clk 0:02:47]}  Nxf6 {[%clk 0:02:25]} 13. Qe3 {[%clk 0:02:22]}  Qxa2 {[%clk 0:02:15]} 14. c3 {[%clk 0:02:22]}  Kg7 {[%clk 0:02:06]} 15. Qe5 {[%clk 0:02:21]}  Qd5 {[%clk 0:02:01]} 16. Qd4 {[%clk 0:02:17]}  a5 {[%clk 0:01:52]} 17. Bc4 {[%clk 0:02:12]}  Qf5 {[%clk 0:01:44]} 18. Ne5 {[%clk 0:02:02]}  Qe4 {[%clk 0:01:22]} 19. Rhe1 {[%clk 0:01:57]}  Qxd4 {[%clk 0:01:21]} 20. cxd4 {[%clk 0:01:58]}  a4 {[%clk 0:01:19]} 21. f4 {[%clk 0:01:51]}  a3 {[%clk 0:01:19]} 22. b3 {[%clk 0:01:50]}  Bd7 {[%clk 0:01:14]} 23. g4 {[%clk 0:01:47]}  Bc6 {[%clk 0:01:14]} 24. g5 {[%clk 0:01:42]}  Nh5 {[%clk 0:01:14]} 25. Rf1 {[%clk 0:01:36]}  Be4 {[%clk 0:01:11]} 26. Be2 {[%clk 0:01:26]}  a2 {[%clk 0:00:58]} 27. Kb2 {[%clk 0:01:26]}  Bb1 {[%clk 0:00:58]} 28. Ka1 {[%clk 0:01:18]}  Rfd8 {[%clk 0:00:58]} 29. Bxh5 {[%clk 0:01:15]}  gxh5 {[%clk 0:00:59]} 30. Nc4 {[%clk 0:01:03]}  Bc2 {[%clk 0:00:46]} 31. Rd2 {[%clk 0:00:55]}  Bxb3 {[%clk 0:00:46]} 32. Nd6 {[%clk 0:00:53]}  Bd5 {[%clk 0:00:43]} 33. f5 {[%clk 0:00:51]}  Rxd6 {[%clk 0:00:36]} 34. cxd6 {[%clk 0:00:41]}  Rd8 {[%clk 0:00:36]} 35. h4 {[%clk 0:00:31]}  Rxd6 {[%clk 0:00:32]} 36. f6+ {[%clk 0:00:25]}  Kg6 {[%clk 0:00:32]} 37. Rc1 {[%clk 0:00:26]}  b5 {[%clk 0:00:27]} 38. Rc8 {[%clk 0:00:23]}  b4 {[%clk 0:00:28]} 39. Rg8+ {[%clk 0:00:21]}  Kf5 {[%clk 0:00:28]} 40. Rg7 {[%clk 0:00:20]}  Rc6 {[%clk 0:00:25]} 41. Rxa2 {[%clk 0:00:16]}  b3 {[%clk 0:00:12]} 42. Rf2+ {[%clk 0:00:13]}  Ke4 {[%clk 0:00:12]} 43. Rxf7 {[%clk 0:00:10]}  Kxd4 {[%clk 0:00:12]} 44. Kb2 {[%clk 0:00:10]}  Ra6 {[%clk 0:00:11]} 45. Rd2+ {[%clk 0:00:08]}  Kc4 {[%clk 0:00:05]} 46. Rc7+ {[%clk 0:00:07]}  Bc6 {[%clk 0:00:04]} 47. f7 {[%clk 0:00:04]}  Ra2+ {[%clk 0:00:01]} 48. Kc1 {[%clk 0:00:04]}  Ra1+ {[%clk 0:00:01]} 49. Kb2 {[%clk 0:00:04]}  Ra2+ {[%clk 0:00:02]} 50. Kb1 {[%clk 0:00:05]}  Rxd2 {[%clk 0:00:00]} 51. f8=Q {[%clk 0:00:05]} 1-0


[Site "https://www.chess.com"]

[Event "Titled Tuesday Blitz July 4 Late 2023"]
[White "Lorenzo De La Riva, Lazaro"]
[Black "Kozelov, Roman"]
[WhiteFideId "2268809"]
[BlackFideId "14133377"]
[WhiteElo "2509"]
[BlackElo "2330"]
[Result "0-1"]
[Round "2"]
[TimeControl "180+2"]
[Date "2023.07.04"]
[WhiteClock "0:00:00"]
[BlackClock "0:00:18"]
[Board "139"]

1. e4 {[%clk 0:03:00]}  e6 {[%clk 0:02:44]} 2. d4 {[%clk 0:02:57]}  d5 {[%clk 0:02:44]} 3. Nc3 {[%clk 0:02:57]}  Bb4 {[%clk 0:02:42]} 4. e5 {[%clk 0:02:57]}  c5 {[%clk 0:02:42]} 5. a3 {[%clk 0:02:57]}  Bxc3+ {[%clk 0:02:42]} 6. bxc3 {[%clk 0:02:57]}  Ne7 {[%clk 0:02:42]} 7. Qg4 {[%clk 0:02:58]}  Kf8 {[%clk 0:02:42]} 8. h4 {[%clk 0:02:55]}  Qa5 {[%clk 0:02:41]} 9. Bd2 {[%clk 0:02:54]}  Qa4 {[%clk 0:02:42]} 10. Nf3 {[%clk 0:02:52]}  Nbc6 {[%clk 0:02:38]} 11. h5 {[%clk 0:02:47]}  h6 {[%clk 0:02:33]} 12. Bd3 {[%clk 0:02:43]}  c4 {[%clk 0:02:33]} 13. Be2 {[%clk 0:02:41]}  Qxc2 {[%clk 0:02:33]} 14. Rc1 {[%clk 0:02:41]}  Qf5 {[%clk 0:02:31]} 15. Qg3 {[%clk 0:02:39]}  Qe4 {[%clk 0:02:24]} 16. Rh4 {[%clk 0:02:35]}  Nf5 {[%clk 0:02:23]} 17. Rxe4 {[%clk 0:02:28]}  Nxg3 {[%clk 0:02:23]} 18. Rh4 {[%clk 0:02:23]}  Nxe2 {[%clk 0:02:22]} 19. Kxe2 {[%clk 0:02:24]}  b5 {[%clk 0:02:20]} 20. Rf4 {[%clk 0:02:17]}  Ke7 {[%clk 0:02:18]} 21. Rb1 {[%clk 0:02:14]}  a6 {[%clk 0:02:14]} 22. Bc1 {[%clk 0:02:14]}  Rd8 {[%clk 0:02:05]} 23. a4 {[%clk 0:02:08]}  Kf8 {[%clk 0:01:49]} 24. Nh4 {[%clk 0:02:05]}  Kg8 {[%clk 0:01:37]} 25. axb5 {[%clk 0:02:05]}  axb5 {[%clk 0:01:37]} 26. Rxb5 {[%clk 0:02:06]}  Ra2+ {[%clk 0:01:37]} 27. Kf3 {[%clk 0:02:05]}  Rc2 {[%clk 0:01:36]} 28. Bb2 {[%clk 0:01:55]}  Ba6 {[%clk 0:01:31]} 29. Rb6 {[%clk 0:01:54]}  Nb8 {[%clk 0:01:21]} 30. g4 {[%clk 0:01:33]}  Nd7 {[%clk 0:01:20]} 31. Rxa6 {[%clk 0:01:33]}  Rxb2 {[%clk 0:01:21]} 32. Ng2 {[%clk 0:01:25]}  Rb3 {[%clk 0:01:20]} 33. Ne3 {[%clk 0:01:22]}  Rxc3 {[%clk 0:01:21]} 34. Ke2 {[%clk 0:01:22]}  Rb3 {[%clk 0:01:12]} 35. Ra7 {[%clk 0:01:21]}  Rb2+ {[%clk 0:01:09]} 36. Kd1 {[%clk 0:01:22]}  c3 {[%clk 0:01:02]} 37. Kc1 {[%clk 0:01:19]}  Nf8 {[%clk 0:00:46]} 38. Rfxf7 {[%clk 0:01:17]}  Rdb8 {[%clk 0:00:40]} 39. Rxg7+ {[%clk 0:01:17]}  Kh8 {[%clk 0:00:40]} 40. Rgf7 {[%clk 0:01:05]}  Re2 {[%clk 0:00:35]} 41. g5 {[%clk 0:00:59]}  hxg5 {[%clk 0:00:34]} 42. Ng4 {[%clk 0:00:51]}  c2 {[%clk 0:00:32]} 43. Rxf8+ {[%clk 0:00:42]}  Rxf8 {[%clk 0:00:26]} 44. Nf6 {[%clk 0:00:42]}  Rxf6 {[%clk 0:00:25]} 45. exf6 {[%clk 0:00:43]}  Rxf2 {[%clk 0:00:25]} 46. f7 {[%clk 0:00:42]}  Kg7 {[%clk 0:00:24]} 47. Re7 {[%clk 0:00:31]}  Rxf7 {[%clk 0:00:20]} 48. Rxe6 {[%clk 0:00:28]}  Rf4 {[%clk 0:00:21]} 49. Kxc2 {[%clk 0:00:26]}  Rxd4 {[%clk 0:00:20]} 50. Rg6+ {[%clk 0:00:27]}  Kf7 {[%clk 0:00:19]} 51. Rxg5 {[%clk 0:00:27]}  Ke6 {[%clk 0:00:18]} 52. Kc3 {[%clk 0:00:27]}  Rh4 {[%clk 0:00:18]} 53. Kd3 {[%clk 0:00:25]}  Kd6 {[%clk 0:00:18]} 54. Rg6+ {[%clk 0:00:24]}  Kc5 {[%clk 0:00:18]} 55. h6 {[%clk 0:00:25]}  Rh3+ {[%clk 0:00:18]} 56. Kd2 {[%clk 0:00:25]}  Kc4 {[%clk 0:00:19]} 57. Rc6+ {[%clk 0:00:23]}  Kd4 {[%clk 0:00:19]} 58. Ke2 {[%clk 0:00:22]}  Rh2+ {[%clk 0:00:19]} 59. Kf3 {[%clk 0:00:22]}  Kd3 {[%clk 0:00:20]} 60. Kg3 {[%clk 0:00:20]}  Rh1 {[%clk 0:00:19]} 61. Kg4 {[%clk 0:00:19]}  d4 {[%clk 0:00:20]} 62. Kg5 {[%clk 0:00:19]}  Ke2 {[%clk 0:00:20]} 63. h7 {[%clk 0:00:19]}  Rxh7 {[%clk 0:00:19]} 64. Re6+ {[%clk 0:00:19]}  Kd2 {[%clk 0:00:18]} 65. Kf4 {[%clk 0:00:19]}  Rd7 {[%clk 0:00:18]} 66. Kf3 {[%clk 0:00:18]}  d3 {[%clk 0:00:18]} 67. Rc6 {[%clk 0:00:18]}  Kd1 {[%clk 0:00:19]} 68. Ke3 {[%clk 0:00:18]}  d2 {[%clk 0:00:19]} 69. Rc3 {[%clk 0:00:17]}  Ke1 {[%clk 0:00:18]} 70. Kf3 {[%clk 0:00:00]}  d1=Q+ {[%clk 0:00:18]} 0-1


[Site "https://www.chess.com"]

[Event "Titled Tuesday Blitz July 4 Late 2023"]
[White "Chor, Kevin"]
[Black "Cardozo Munar, Carlos Eduardo"]
[WhiteFideId "2090740"]
[BlackFideId "4409477"]
[WhiteElo "2507"]
[BlackElo "2329"]
[Result "0-1"]
[Round "2"]
[TimeControl "180+2"]
[Date "2023.07.04"]
[WhiteClock "0:02:07"]
[BlackClock "0:02:40"]
[Board "140"]

1. e4 {[%clk 0:03:00]}  e6 {[%clk 0:02:59]} 2. d4 {[%clk 0:03:00]}  d5 {[%clk 0:03:00]} 3. Nd2 {[%clk 0:03:00]}  c5 {[%clk 0:03:00]} 4. exd5 {[%clk 0:03:01]}  Qxd5 {[%clk 0:02:58]} 5. Ngf3 {[%clk 0:03:01]}  cxd4 {[%clk 0:02:57]} 6. Bc4 {[%clk 0:03:01]}  Qd7 {[%clk 0:02:58]} 7. O-O {[%clk 0:02:59]}  Nc6 {[%clk 0:02:58]} 8. Nb3 {[%clk 0:02:59]}  Nf6 {[%clk 0:02:59]} 9. Nbxd4 {[%clk 0:02:58]}  Nxd4 {[%clk 0:03:00]} 10. Nxd4 {[%clk 0:02:58]}  a6 {[%clk 0:03:01]} 11. Re1 {[%clk 0:02:51]}  Qc7 {[%clk 0:02:59]} 12. Be2 {[%clk 0:02:39]}  Bd6 {[%clk 0:02:59]} 13. h3 {[%clk 0:02:38]}  O-O {[%clk 0:02:58]} 14. c4 {[%clk 0:02:38]}  Rd8 {[%clk 0:02:51]} 15. Be3 {[%clk 0:02:23]}  Bh2+ {[%clk 0:02:40]} 16. Kh1 {[%clk 0:02:07]}  e5 {[%clk 0:02:40]} 0-1


[Site "https://www.chess.com"]

[Event "Titled Tuesday Blitz July 4 Late 2023"]
[White "Ozen, Batuhan"]
[Black "Deng, Henry"]
[WhiteFideId "6345123"]
[BlackFideId "30965454"]
[WhiteElo "2326"]
[BlackElo "2506"]
[Result "1-0"]
[Round "2"]
[TimeControl "180+2"]
[Date "2023.07.04"]
[WhiteClock "0:00:06"]
[BlackClock "0:00:00"]
[Board "141"]

1. c4 {[%clk 0:03:00]}  c6 {[%clk 0:02:59]} 2. Nf3 {[%clk 0:02:58]}  d5 {[%clk 0:03:00]} 3. g3 {[%clk 0:02:58]}  Nf6 {[%clk 0:03:00]} 4. Bg2 {[%clk 0:02:59]}  dxc4 {[%clk 0:03:00]} 5. a4 {[%clk 0:02:53]}  Nbd7 {[%clk 0:02:57]} 6. Na3 {[%clk 0:02:49]}  e5 {[%clk 0:02:52]} 7. Nxc4 {[%clk 0:02:44]}  e4 {[%clk 0:02:51]} 8. Ng5 {[%clk 0:02:32]}  Nc5 {[%clk 0:02:43]} 9. b4 {[%clk 0:02:26]}  Qd4 {[%clk 0:02:40]} 10. Bb2 {[%clk 0:02:25]}  Qxc4 {[%clk 0:02:39]} 11. bxc5 {[%clk 0:02:21]}  Bf5 {[%clk 0:02:25]} 12. Rc1 {[%clk 0:02:14]}  Qb4 {[%clk 0:02:21]} 13. Bc3 {[%clk 0:02:09]}  Qa3 {[%clk 0:02:06]} 14. Bxf6 {[%clk 0:02:03]}  gxf6 {[%clk 0:02:05]} 15. Nxe4 {[%clk 0:02:03]}  Bxe4 {[%clk 0:02:05]} 16. Bxe4 {[%clk 0:02:04]}  Bxc5 {[%clk 0:02:05]} 17. O-O {[%clk 0:01:59]}  O-O-O {[%clk 0:02:04]} 18. Qc2 {[%clk 0:01:48]}  Bb6 {[%clk 0:01:45]} 19. e3 {[%clk 0:01:25]}  Kb8 {[%clk 0:01:25]} 20. d4 {[%clk 0:01:24]}  Qd6 {[%clk 0:01:07]} 21. Rb1 {[%clk 0:01:19]}  h5 {[%clk 0:01:04]} 22. a5 {[%clk 0:00:53]}  Bxa5 {[%clk 0:01:02]} 23. Bxc6 {[%clk 0:00:37]}  Bb6 {[%clk 0:01:01]} 24. Bg2 {[%clk 0:00:34]}  h4 {[%clk 0:01:01]} 25. Qe4 {[%clk 0:00:33]}  Rd7 {[%clk 0:00:42]} 26. Rb5 {[%clk 0:00:33]}  hxg3 {[%clk 0:00:41]} 27. hxg3 {[%clk 0:00:34]}  Qf8 {[%clk 0:00:32]} 28. Rfb1 {[%clk 0:00:32]}  Qc8 {[%clk 0:00:27]} 29. Rf5 {[%clk 0:00:28]}  Rd6 {[%clk 0:00:18]} 30. Qf4 {[%clk 0:00:24]}  Qc7 {[%clk 0:00:17]} 31. Rxf6 {[%clk 0:00:22]}  Rxf6 {[%clk 0:00:17]} 32. Qxf6 {[%clk 0:00:23]}  Rc8 {[%clk 0:00:17]} 33. Bh3 {[%clk 0:00:19]}  Rg8 {[%clk 0:00:16]} 34. Bg2 {[%clk 0:00:18]}  Qd7 {[%clk 0:00:16]} 35. Qe5+ {[%clk 0:00:17]}  Ka8 {[%clk 0:00:16]} 36. Qe4 {[%clk 0:00:17]}  Rc8 {[%clk 0:00:16]} 37. Qf3 {[%clk 0:00:17]}  Rd8 {[%clk 0:00:16]} 38. g4 {[%clk 0:00:17]}  Rc8 {[%clk 0:00:16]} 39. g5 {[%clk 0:00:18]}  Rg8 {[%clk 0:00:16]} 40. Qf4 {[%clk 0:00:16]}  Qe7 {[%clk 0:00:17]} 41. Rb5 {[%clk 0:00:12]}  Qd7 {[%clk 0:00:16]} 42. Rf5 {[%clk 0:00:11]}  Rg7 {[%clk 0:00:17]} 43. Be4 {[%clk 0:00:10]}  Qc7 {[%clk 0:00:14]} 44. Qh4 {[%clk 0:00:09]}  Rg8 {[%clk 0:00:13]} 45. Qh7 {[%clk 0:00:08]}  Qd8 {[%clk 0:00:12]} 46. f4 {[%clk 0:00:07]}  Bxd4 {[%clk 0:00:09]} 47. Qxf7 {[%clk 0:00:06]}  Bxe3+ {[%clk 0:00:09]} 48. Kh2 {[%clk 0:00:03]}  Rh8+ {[%clk 0:00:08]} 49. Kg3 {[%clk 0:00:03]}  Qc8 {[%clk 0:00:07]} 50. Bxb7+ {[%clk 0:00:02]}  Qxb7 {[%clk 0:00:08]} 51. Qxb7+ {[%clk 0:00:01]}  Kxb7 {[%clk 0:00:08]} 52. Re5 {[%clk 0:00:02]}  Bd4 {[%clk 0:00:08]} 53. Re4 {[%clk 0:00:02]}  Bc5 {[%clk 0:00:07]} 54. f5 {[%clk 0:00:03]}  Kc6 {[%clk 0:00:08]} 55. Kg4 {[%clk 0:00:03]}  Kd5 {[%clk 0:00:07]} 56. Ra4 {[%clk 0:00:03]}  Rh1 {[%clk 0:00:07]} 57. f6 {[%clk 0:00:03]}  Rg1+ {[%clk 0:00:08]} 58. Kf5 {[%clk 0:00:04]}  Rf1+ {[%clk 0:00:03]} 59. Kg6 {[%clk 0:00:04]}  Rg1 {[%clk 0:00:03]} 60. f7 {[%clk 0:00:04]}  Ke6 {[%clk 0:00:03]} 61. Ra5 {[%clk 0:00:03]}  Be7 {[%clk 0:00:01]} 62. Rf5 {[%clk 0:00:04]}  Kd7 {[%clk 0:00:01]} 63. f8=Q {[%clk 0:00:04]}  Bxf8 {[%clk 0:00:01]} 64. Rxf8 {[%clk 0:00:04]}  a5 {[%clk 0:00:02]} 65. Ra8 {[%clk 0:00:04]}  a4 {[%clk 0:00:01]} 66. Rxa4 {[%clk 0:00:04]}  Ke7 {[%clk 0:00:01]} 67. Rf4 {[%clk 0:00:04]}  Rb1 {[%clk 0:00:01]} 68. Rf7+ {[%clk 0:00:04]}  Ke8 {[%clk 0:00:01]} 69. Rf6 {[%clk 0:00:05]}  Rb7 {[%clk 0:00:01]} 70. Kh6 {[%clk 0:00:04]}  Rb1 {[%clk 0:00:01]} 71. g6 {[%clk 0:00:05]}  Rh1+ {[%clk 0:00:02]} 72. Kg7 {[%clk 0:00:05]}  Ke7 {[%clk 0:00:02]} 73. Rf2 {[%clk 0:00:05]}  Rg1 {[%clk 0:00:02]} 74. Re2+ {[%clk 0:00:05]}  Kd6 {[%clk 0:00:02]} 75. Kf7 {[%clk 0:00:06]}  Rf1+ {[%clk 0:00:02]} 76. Kg8 {[%clk 0:00:06]}  Rg1 {[%clk 0:00:03]} 77. g7 {[%clk 0:00:07]}  Rg3 {[%clk 0:00:01]} 78. Kh7 {[%clk 0:00:06]}  Rh3+ {[%clk 0:00:01]} 79. Kg8 {[%clk 0:00:07]}  Rg3 {[%clk 0:00:02]} 80. Re4 {[%clk 0:00:07]}  Rg1 {[%clk 0:00:01]} 81. Kh7 {[%clk 0:00:07]}  Kd5 {[%clk 0:00:00]} 82. Rh4 {[%clk 0:00:06]} 1-0


[Site "https://www.chess.com"]

[Event "Titled Tuesday Blitz July 4 Late 2023"]
[White "a-z30"]
[Black "Korpics, Zsolt"]
[BlackFideId "705241"]
[WhiteElo "2503"]
[BlackElo "2320"]
[Result "0-1"]
[Round "2"]
[TimeControl "180+2"]
[Date "2023.07.04"]
[WhiteClock "0:00:00"]
[BlackClock "0:00:04"]
[Board "144"]

1. d3 {[%clk 0:03:00]}  d5 {[%clk 0:02:58]} 2. Nf3 {[%clk 0:03:01]}  Nf6 {[%clk 0:02:58]} 3. g3 {[%clk 0:03:01]}  Bg4 {[%clk 0:02:57]} 4. Bg2 {[%clk 0:03:01]}  Nbd7 {[%clk 0:02:58]} 5. O-O {[%clk 0:03:00]}  e5 {[%clk 0:02:57]} 6. h3 {[%clk 0:02:54]}  Bh5 {[%clk 0:02:32]} 7. c4 {[%clk 0:02:53]}  c6 {[%clk 0:02:28]} 8. cxd5 {[%clk 0:02:52]}  cxd5 {[%clk 0:02:28]} 9. Nc3 {[%clk 0:02:51]}  Bd6 {[%clk 0:02:26]} 10. Bg5 {[%clk 0:02:41]}  Nb6 {[%clk 0:02:20]} 11. e4 {[%clk 0:02:28]}  dxe4 {[%clk 0:01:45]} 12. Nxe4 {[%clk 0:02:28]}  Be7 {[%clk 0:01:46]} 13. g4 {[%clk 0:01:59]}  Nxe4 {[%clk 0:01:44]} 14. Bxe7 {[%clk 0:01:44]}  Qxe7 {[%clk 0:01:44]} 15. gxh5 {[%clk 0:01:31]}  Nf6 {[%clk 0:01:20]} 16. Nxe5 {[%clk 0:01:23]}  O-O {[%clk 0:01:14]} 17. Re1 {[%clk 0:01:20]}  Rad8 {[%clk 0:01:12]} 18. Ng6 {[%clk 0:01:16]}  Qc5 {[%clk 0:00:24]} 19. Nxf8 {[%clk 0:01:13]}  Kxf8 {[%clk 0:00:24]} 20. h6 {[%clk 0:01:13]}  gxh6 {[%clk 0:00:23]} 21. Re3 {[%clk 0:01:06]}  Nbd5 {[%clk 0:00:20]} 22. Rf3 {[%clk 0:00:54]}  Kg7 {[%clk 0:00:20]} 23. Rc1 {[%clk 0:00:53]}  Qd4 {[%clk 0:00:19]} 24. Qd2 {[%clk 0:00:41]}  h5 {[%clk 0:00:12]} 25. Rc4 {[%clk 0:00:39]}  Qe5 {[%clk 0:00:12]} 26. Rg3+ {[%clk 0:00:34]}  Kh8 {[%clk 0:00:10]} 27. Rg5 {[%clk 0:00:19]}  Qd6 {[%clk 0:00:06]} 28. Rd4 {[%clk 0:00:12]}  Qc5 {[%clk 0:00:05]} 29. Rc4 {[%clk 0:00:02]}  Qd6 {[%clk 0:00:05]} 30. Qd1 {[%clk 0:00:00]}  Nb6 {[%clk 0:00:04]} 0-1


[Site "https://www.chess.com"]

[Event "Titled Tuesday Blitz July 4 Late 2023"]
[White "CarolinaLujan"]
[Black "Martinez Reyes, Pedro Ramon"]
[BlackFideId "3901807"]
[WhiteElo "2300"]
[BlackElo "2495"]
[Result "0-1"]
[Round "2"]
[TimeControl "180+2"]
[Date "2023.07.04"]
[WhiteClock "0:01:14"]
[BlackClock "0:01:01"]
[Board "150"]

1. e4 {[%clk 0:03:00]}  d5 {[%clk 0:02:57]} 2. exd5 {[%clk 0:03:00]}  Qxd5 {[%clk 0:02:57]} 3. Nc3 {[%clk 0:03:00]}  Qd8 {[%clk 0:02:58]} 4. Bc4 {[%clk 0:02:59]}  Nf6 {[%clk 0:02:59]} 5. Nf3 {[%clk 0:02:59]}  g6 {[%clk 0:02:59]} 6. Ng5 {[%clk 0:02:57]}  e6 {[%clk 0:02:59]} 7. Qe2 {[%clk 0:02:57]}  Bg7 {[%clk 0:02:57]} 8. O-O {[%clk 0:02:54]}  Nc6 {[%clk 0:02:56]} 9. Nf3 {[%clk 0:02:45]}  O-O {[%clk 0:02:54]} 10. d3 {[%clk 0:02:44]}  Na5 {[%clk 0:02:55]} 11. Bg5 {[%clk 0:02:43]}  h6 {[%clk 0:02:53]} 12. Bh4 {[%clk 0:02:42]}  Nxc4 {[%clk 0:02:29]} 13. dxc4 {[%clk 0:02:41]}  g5 {[%clk 0:02:30]} 14. Bg3 {[%clk 0:02:40]}  Nh5 {[%clk 0:02:30]} 15. Rad1 {[%clk 0:02:36]}  Qe7 {[%clk 0:02:28]} 16. Nd5 {[%clk 0:02:25]}  Qc5 {[%clk 0:02:20]} 17. b4 {[%clk 0:02:23]}  Nxg3 {[%clk 0:02:15]} 18. hxg3 {[%clk 0:02:22]}  Qd6 {[%clk 0:02:02]} 19. Nf6+ {[%clk 0:02:18]}  Bxf6 {[%clk 0:02:02]} 20. Rxd6 {[%clk 0:02:19]}  cxd6 {[%clk 0:02:03]} 21. c5 {[%clk 0:02:14]}  dxc5 {[%clk 0:01:57]} 22. bxc5 {[%clk 0:02:14]}  Bd7 {[%clk 0:01:46]} 23. Ne5 {[%clk 0:02:14]}  Rfd8 {[%clk 0:01:42]} 24. f4 {[%clk 0:02:08]}  Bxe5 {[%clk 0:01:32]} 25. Qxe5 {[%clk 0:02:04]}  Bc6 {[%clk 0:01:32]} 26. fxg5 {[%clk 0:02:02]}  Rd2 {[%clk 0:01:31]} 27. Rf2 {[%clk 0:02:01]}  Rxf2 {[%clk 0:01:30]} 28. Kxf2 {[%clk 0:02:01]}  hxg5 {[%clk 0:01:31]} 29. Qxg5+ {[%clk 0:02:01]}  Kf8 {[%clk 0:01:32]} 30. Qf6 {[%clk 0:02:01]}  Re8 {[%clk 0:01:23]} 31. g4 {[%clk 0:02:01]}  e5 {[%clk 0:01:23]} 32. g5 {[%clk 0:02:01]}  Re6 {[%clk 0:01:23]} 33. Qh8+ {[%clk 0:01:56]}  Ke7 {[%clk 0:01:23]} 34. Qb8 {[%clk 0:01:54]}  a6 {[%clk 0:01:23]} 35. Qc7+ {[%clk 0:01:55]}  Ke8 {[%clk 0:01:22]} 36. g3 {[%clk 0:01:52]}  e4 {[%clk 0:01:22]} 37. Ke3 {[%clk 0:01:51]}  Kf8 {[%clk 0:01:19]} 38. c4 {[%clk 0:01:48]}  Kg7 {[%clk 0:01:18]} 39. Kf4 {[%clk 0:01:47]}  e3 {[%clk 0:01:17]} 40. g6 {[%clk 0:01:45]}  Kxg6 {[%clk 0:01:11]} 41. Qc8 {[%clk 0:01:14]}  Re4+ {[%clk 0:01:01]} 0-1


[Site "https://www.chess.com"]

[Event "Titled Tuesday Blitz July 4 Late 2023"]
[White "Alexikov, Alexander"]
[Black "only_strong_moves"]
[WhiteFideId "14103958"]
[WhiteElo "2297"]
[BlackElo "2492"]
[Result "0-1"]
[Round "2"]
[TimeControl "180+2"]
[Date "2023.07.04"]
[WhiteClock "0:00:00"]
[BlackClock "0:01:28"]
[Board "151"]

1. e4 {[%clk 0:03:00]}  c5 {[%clk 0:02:52]} 2. Nf3 {[%clk 0:03:00]}  Nc6 {[%clk 0:02:52]} 3. d4 {[%clk 0:03:00]}  cxd4 {[%clk 0:02:53]} 4. Nxd4 {[%clk 0:02:59]}  Nf6 {[%clk 0:02:54]} 5. Nc3 {[%clk 0:02:59]}  e5 {[%clk 0:02:54]} 6. Ndb5 {[%clk 0:02:57]}  d6 {[%clk 0:02:54]} 7. Bg5 {[%clk 0:02:55]}  a6 {[%clk 0:02:54]} 8. Na3 {[%clk 0:02:55]}  b5 {[%clk 0:02:54]} 9. Nd5 {[%clk 0:02:55]}  Be7 {[%clk 0:02:54]} 10. Bxf6 {[%clk 0:02:55]}  Bxf6 {[%clk 0:02:55]} 11. c4 {[%clk 0:02:54]}  b4 {[%clk 0:02:53]} 12. Nc2 {[%clk 0:02:53]}  a5 {[%clk 0:02:54]} 13. Be2 {[%clk 0:02:51]}  O-O {[%clk 0:02:54]} 14. O-O {[%clk 0:02:51]}  g6 {[%clk 0:02:53]} 15. b3 {[%clk 0:02:46]}  Bg7 {[%clk 0:02:52]} 16. Bf3 {[%clk 0:02:45]}  Kh8 {[%clk 0:02:51]} 17. g3 {[%clk 0:02:32]}  Rb8 {[%clk 0:02:49]} 18. Qe2 {[%clk 0:02:26]}  f5 {[%clk 0:02:44]} 19. Rad1 {[%clk 0:02:04]}  f4 {[%clk 0:02:28]} 20. Rd3 {[%clk 0:01:53]}  Qg5 {[%clk 0:02:26]} 21. Rfd1 {[%clk 0:01:49]}  h5 {[%clk 0:02:23]} 22. Kg2 {[%clk 0:01:32]}  Rb7 {[%clk 0:02:21]} 23. Kh1 {[%clk 0:01:21]}  Rbf7 {[%clk 0:02:19]} 24. Rg1 {[%clk 0:01:16]}  fxg3 {[%clk 0:02:07]} 25. fxg3 {[%clk 0:01:06]}  Kh7 {[%clk 0:02:00]} 26. h4 {[%clk 0:01:03]}  Qd8 {[%clk 0:01:58]} 27. Rg2 {[%clk 0:00:20]}  Be6 {[%clk 0:01:56]} 28. Kh2 {[%clk 0:00:17]}  Qd7 {[%clk 0:01:51]} 29. Rf2 {[%clk 0:00:16]}  Bg4 {[%clk 0:01:50]} 30. Ne1 {[%clk 0:00:14]}  Nd8 {[%clk 0:01:46]} 31. Ne3 {[%clk 0:00:12]}  Bh6 {[%clk 0:01:38]} 32. Nd1 {[%clk 0:00:06]}  Ne6 {[%clk 0:01:36]} 33. Bxg4 {[%clk 0:00:05]}  Rxf2+ {[%clk 0:01:34]} 34. Nxf2 {[%clk 0:00:04]}  hxg4 {[%clk 0:01:33]} 35. Nxg4 {[%clk 0:00:00]}  Nd4 {[%clk 0:01:28]} 0-1


[Site "https://www.chess.com"]